Cogmind - Beta 10.2 @@@ ROGUE MODE // 2021.08.27 @ 23:28:09 Player: WayneKnight Result: Self-destructed Performance ------------- Evolutions (2) 1000 Regions Visited (7) 1400 Robots Destroyed (77) 385 Value Destroyed (2187) 2187 Prototype IDs (30) 600 Alien Tech Used (0) 0 Bonus (403) 403 TOTAL SCORE: 5975 Bonus ------- High Alert Combat Kills 31 Follower Combat Kills 72 Aligned with FarCom 300 Cogmind --------- Core Integrity 521/550 Matter 270/300 Energy 125/125 System Corruption 0% Temperature Cool (120) Movement Treading (180) Ox1 Location -8/Materials Parts ------- > --- POWER (1) -------- Light Ion Engine > --- PROPULSION (3) --- Light Treads Light Treads Light Treads > --- UTILITY (4) ------ High-capacity Storage Unit High-capacity Storage Unit High-capacity Storage Unit Improved Light Armor Plating > --- WEAPON (3) ------- Heavy Particle Gun Heavy Assault Rifle Minigun > --- INVENTORY (28) --- Light Ion Engine Light Treads Light Treads Armored Wheel Armored Wheel Improved Heat Sink Large Storage Unit Improved Signal Interpreter Advanced Terrain Scanner Improved Light Armor Plating Improved Light Armor Plating Hacking Suite Beam Rifle Spread Laser Spread Laser Guided Plasma Cannon XL Autogun Array Rocket Launcher Rocket Launcher Datajack Heavy Flail Peak State ------------ > --- POWER ------------ Light Ion Engine > --- PROPULSION ------- Light Treads Light Treads Light Treads > --- UTILITY ---------- High-capacity Storage Unit High-capacity Storage Unit High-capacity Storage Unit Improved Light Armor Plating > --- WEAPON ----------- Heavy Particle Gun Heavy Assault Rifle Minigun > --- INVENTORY -------- Light Ion Engine Light Treads Light Treads Armored Wheel Armored Wheel Improved Heat Sink Large Storage Unit Improved Signal Interpreter Advanced Terrain Scanner Improved Light Armor Plating Improved Light Armor Plating Hacking Suite Beam Rifle Spread Laser Spread Laser Guided Plasma Cannon XL Autogun Array Rocket Launcher Rocket Launcher Datajack Heavy Flail [Rating: 27] Favorites ----------- Power Light Ion Engine Engine Light Ion Engine Propulsion Light Treads Treads Light Treads Leg Aluminum Leg Wheel Armored Wheel Utility High-capacity Storage Unit Device Improved Heat Sink Storage High-capacity Storage Unit Protection Improved Light Armor Plating Weapon Heavy Assault Rifle Energy Gun Spread Laser Ballistic Gun Heavy Assault Rifle Launcher Rocket Launcher Special Melee Weapon Datajack Build | -11 -10 -10 -9 -9 -9 -8 -8 ------- Run | Scr Mat Min Mat Min Exi Min Mat Slots Evolved 4 | . . . 2 . . . 2 Power . | . . . . . . . . Propulsion 1 | . . . . . . . 1 Utility 2 | . . . 2 . . . . Weapon 1 | . . . . . . . 1 Parts Attached 55 | 4 11 2 24 . 2 5 7 Power 5 | . 1 1 3 . . . . Engine 5 | . 1 1 3 . . . . Core . | . . . . . . . . Reactor . | . . . . . . . . Propulsion 12 | 2 2 . 5 . . 2 1 Treads 10 | 2 . . 5 . . 2 1 Leg . | . . . . . . . . Wheel 2 | . 2 . . . . . . Hover . | . . . . . . . . Flight . | . . . . . . . . Utility 13 | 1 3 . 7 . 2 . . Device 1 | . 1 . . . . . . Storage 7 | 1 2 . 2 . 2 . . Processor . | . . . . . . . . Hackware . | . . . . . . . . Protection 5 | . . . 5 . . . . Artifact . | . . . . . . . . Weapon 25 | 1 5 1 9 . . 3 6 Energy Gun 12 | 1 4 . 3 . . 2 2 Energy Cannon . | . . . . . . . . Ballistic Gun 9 | . . 1 4 . . 1 3 Ballistic Cannon . | . . . . . . . . Launcher 2 | . . . 1 . . . 1 Special Weapon . | . . . . . . . . Impact Weapon . | . . . . . . . . Slashing Weapon . | . . . . . . . . Piercing Weapon . | . . . . . . . . Special Melee Weapon 2 | . 1 . 1 . . . . Unidentified Prototypes 3 | . . . 2 . . . 1 Parts Lost 11 | . 1 2 4 . . 4 . Power 3 | . . 1 2 . . . . Propulsion 2 | . . . . . . 2 . Utility 1 | . . . 1 . . . . Weapon 5 | . 1 1 1 . . 2 . Highest Loss Streak 2 | . 1 1 2 . . 2 . Average Slot Usage (%) 99 | . 99 98 99 100 100 99 100 Engine 11 | . 14 12 10 11 11 11 9 Treads 21 | . 24 . 21 22 22 21 27 Wheel 2 | . 3 28 . . . . . Device 8 | . 10 14 11 11 2 . . Storage 23 | . 16 14 21 22 30 33 27 Protection 8 | . . . 10 11 11 11 9 Energy Gun 10 | . 27 20 7 . . 10 9 Ballistic Gun 13 | . . 7 14 22 22 11 17 Naked Turns . | . . . . . . . . Heaviest Build 111 | 15 44 44 83 77 108 108 111 Greatest Support 60 | 40 40 24 40 40 40 40 60 Greatest Overweight (x) 2 | . 1 1 2 1 2 2 1 Average Overweight (x) 1 | . . 1 1 1 1 2 1 Largest Inventory Capacity 28 | 8 12 12 20 20 28 28 28 Average Capacity 19 | 6 10 12 19 20 26 28 28 Most Carried 25 | 6 12 12 20 20 25 25 24 Average Carried 17 | 5 7 11 17 19 21 23 23 Final Capacity 28 | 8 12 12 20 20 28 28 28 Final Carried 25 | 4 12 12 19 20 25 22 24 Class Distribution -------------------- 35% | Scavenger-Mutant 34% | Hauler-Mutant 22% | Mutant 6% | Hauler-Skirmisher Dominant Class ---------------- Mutant | -10/Materials Mutant | -10/Mines Scavenger-Mutant | -9/Materials Scavenger-Mutant | -9/Mines Hauler-Mutant | -9/Exiles Hauler-Mutant | -8/Mines Hauler-Skirmisher | -8/Materials Resources | -11 -10 -10 -9 -9 -9 -8 -8 ----------- Run | Scr Mat Min Mat Min Exi Min Mat Matter Collected 1331 | 211 114 49 624 66 . 140 127 Remotely . | . . . . . . . . Salvage Created 2430 | 94 281 47 1359 108 . 276 265 Parts 140 | 2 13 7 83 9 . 8 18 Haulers Intercepted . | . . . . . . . . Recyclers Shooed 1 | . . . . . . . 1 Parts Field Recycled . | . . . . . . . . Retrieved Matter . | . . . . . . . . Parts Self-Destructed . | . . . . . . . . Prevented . | . . . . . . . . Kills | -11 -10 -10 -9 -9 -9 -8 -8 ------- Run | Scr Mat Min Mat Min Exi Min Mat Combat Hostiles Destroyed 65 | . 10 3 37 4 . 6 5 Guns 58 | . 10 3 32 4 . 6 3 AOE 7 | . . . 5 . . . 2 Classes Destroyed 11 | 1 4 1 2 1 . 2 . Builder 1 | . . . . 1 . . . Tunneler 1 | . . 1 . . . . . Recycler 1 | 1 . . . . . . . Operator 1 | . 1 . . . . . . Watcher 8 | . 1 . 5 . . . 2 Swarmer 20 | . 3 3 11 3 . . . Grunt 32 | . 7 . 16 1 . 4 4 Brawler 2 | . . . 1 . . . 1 Duelist 1 | . . . . . . 1 . Sentry 9 | . . . 9 . . . . Hunter 1 | . . . . . . 1 . Best Kill Streak 4 | 1 3 2 4 3 . 3 3 Combat Bots Only 4 | . 3 2 4 3 . 3 3 Max Kills in Single Turn 2 | 1 1 1 2 2 . 1 1 Gunslinging 1 | . . . 1 1 . . . Exploded 2 | . . . 2 . . . 1 Melee . | . . . . . . . . Uniques/NPCs Destroyed . | . . . . . . . . Combat | -11 -10 -10 -9 -9 -9 -8 -8 -------- Run | Scr Mat Min Mat Min Exi Min Mat Damage Taken 2403 | . 384 86 1140 25 . 571 197 Core 368 | . 50 17 184 9 . 79 29 Absorbed by Shields . | . . . . . . . . Core Remaining (%) 68 | 100 . 73 . . . 32 . Volleys Fired 194 | 7 33 8 97 8 . 28 13 Largest 3 | 2 2 2 2 2 . 2 3 Hottest 130 | 80 130 130 88 46 . 88 103 Shots Fired 381 | 13 60 16 189 16 . 56 31 Gun 377 | 13 60 16 187 16 . 56 29 Cannon . | . . . . . . . . Launcher 4 | . . . 2 . . . 2 Special . | . . . . . . . . Kinetic 197 | . . 3 129 16 . 31 18 Thermal 153 | 6 54 13 44 . . 25 11 Explosive 4 | . . . 2 . . . 2 Electromagnetic 27 | 7 6 . 14 . . . . Robot Hit Streak 24 | 2 9 7 24 5 . 18 11 Robot Miss Streak 5 | 5 5 5 5 2 . 2 3 Penetration Max . | . . . . . . . . Secondary Targets 6 | . 1 . 3 1 . . 1 Max Gunslinging Chain 1 | . 1 . 1 1 . . 1 Shots Hit Robots 284 | 4 54 14 139 11 . 45 17 Core Hits 190 | 2 53 11 84 4 . 21 15 Critical Hits 3 | . . . 2 . . 1 . Critical Kills 1 | . . . 1 . . . . Critical Parts Destroyed 2 | . . . 1 . . 1 . Melee Attacks . | . . . . . . . . Impact . | . . . . . . . . Slashing . | . . . . . . . . Piercing . | . . . . . . . . Sneak Attacks . | . . . . . . . . Combat Hostiles . | . . . . . . . . Follow-up Attacks . | . . . . . . . . Damage Inflicted 4668 | 48 548 123 2494 192 . 666 597 Guns 4059 | 48 548 123 2187 150 . 632 371 Cannons . | . . . . . . . . Explosions 533 | . . . 307 . . . 226 Melee . | . . . . . . . . Ramming 76 | . . . . 42 . 34 . Kinetic 1997 | . . 30 1319 150 . 316 182 Thermal 1852 | 11 482 93 761 . . 316 189 Explosive 447 | . . . 221 . . . 226 Electromagnetic 296 | 37 66 . 193 . . . . Impact . | . . . . . . . . Slashing . | . . . . . . . . Piercing . | . . . . . . . . Highest Corruption 2 | . 2 2 . . . . . Average Corruption 2 | . 2 2 . . . . . Corruption Purged . | . . . . . . . . Effects 17 | . 11 6 . . . . . Message Errors 6 | . 4 2 . . . . . Heat Flow Errors 2 | . 1 1 . . . . . Energy Discharges 6 | . 3 3 . . . . . Data Loss (minor) 1 | . 1 . . . . . . Targeting Errors 1 | . 1 . . . . . . Weapon Failures 1 | . 1 . . . . . . Overload Shots . | . . . . . . . . Overflow Damage . | . . . . . . . . Projectiles . | . . . . . . . . Explosions . | . . . . . . . . Melee . | . . . . . . . . Knockbacks 1 | . . . . . . 1 . Impact 1 | . . . . . . 1 . Kinetic . | . . . . . . . . Secondary . | . . . . . . . . Self-Inflicted Damage 38 | . . . 38 . . . . Shots 1 | . . . 1 . . . . Rammed 9 | . . . . 4 . 5 . Targets Rammed 10 | . . . . 5 . 5 . Kicked . | . . . . . . . . Crushed 1 | . . . . 1 . . . Highest Temperature 399 | 72 399 202 8 . . 198 116 Average Temperature 72 | 35 95 52 2 . . 81 36 Received Heat Transfer 759 | . 93 9 369 . . 171 117 Effects 1 | . 1 . . . . . . Interference 1 | . 1 . . . . . . Siege Activations . | . . . . . . . . Robots Corrupted . | . . . . . . . . Combat Hostiles . | . . . . . . . . Parts Fried 3 | . 1 . 2 . . . . Impact Corruptions . | . . . . . . . . Robots Melted . | . . . . . . . . Combat Hostiles . | . . . . . . . . Parts Melted 4 | . . . 3 . . 1 . Heat Transferred 2973 | 25 585 120 1213 . . 697 333 Parts Sabotaged . | . . . . . . . . Parts Stolen . | . . . . . . . . Parts Stripped . | . . . . . . . . Power Chain Reactions 1 | . . . 1 . . . . Missiles Intercepted . | . . . . . . . . Alert | -11 -10 -10 -9 -9 -9 -8 -8 ------- Run | Scr Mat Min Mat Min Exi Min Mat Peak Influence 497 | 5 205 137 497 308 . 72 117 Initial 123 | . 3 62 7 123 . . . Average 105 | 2 66 68 182 113 . 11 26 Maximum Alert Level 2 | . 1 . 2 1 . . . Low Security (%) 78 | 100 99 100 52 75 . 100 100 Level 1 20 | . . . 43 24 . . . Level 2 1 | . . . 4 . . . . Level 3 . | . . . . . . . . Level 4 . | . . . . . . . . Level 5 . | . . . . . . . . High Security . | . . . . . . . . Max Security . | . . . . . . . . Squads Dispatched 6 | . . . 5 . . . 1 Investigation . | . . . . . . . . Extermination . | . . . . . . . . Reinforcement 5 | . . . 5 . . . . Assault . | . . . . . . . . Garrison 1 | . . . . . . . 1 Intercept . | . . . . . . . . Construction Impeded . | . . . . . . . . Haulers Reinforced . | . . . . . . . . Stealth | -11 -10 -10 -9 -9 -9 -8 -8 --------- Run | Scr Mat Min Mat Min Exi Min Mat Distress Signals 5 | . . 1 4 . . . . Communications Jammed . | . . . . . . . . Distress Signals . | . . . . . . . . Times Spotted 106 | . 19 4 58 8 . 7 10 Peak Tracking Total 6 | . 4 2 6 4 . 3 4 Tactical Retreats 6 | . 2 1 3 . . . . Traps | -11 -10 -10 -9 -9 -9 -8 -8 ------- Run | Scr Mat Min Mat Min Exi Min Mat Traps Triggered 1 | . 1 . . . . . . Indirectly . | . . . . . . . . Trap Hack Attempts 40 | . 13 . 27 . . . . Triggered . | . . . . . . . . Disarmed 1 | . . . 1 . . . . Reprogrammed 3 | . 3 . . . . . . Reused 3 | . 3 . . . . . . Traps Extracted . | . . . . . . . . Installed . | . . . . . . . . Triggered 3 | . 3 . . . . . . Machines | -11 -10 -10 -9 -9 -9 -8 -8 ---------- Run | Scr Mat Min Mat Min Exi Min Mat Machines Disabled 1 | . 1 . . . . . . Max in Single Turn 1 | . 1 . . . . . . Machines Sabotaged . | . . . . . . . . Garrisons Compromised . | . . . . . . . . Overloaded Fab Kills . | . . . . . . . . Fab Network Shutdowns . | . . . . . . . . Hacking | -11 -10 -10 -9 -9 -9 -8 -8 --------- Run | Scr Mat Min Mat Min Exi Min Mat Machines Accessed 22 | . 9 . 10 . 2 . 1 Terminals 16 | . 8 . 7 . . . 1 Fabricators . | . . . . . . . . Repair Stations 3 | . 1 . 2 . . . . Recycling Units . | . . . . . . . . Scanalyzers 1 | . . . 1 . . . . Garrison Access . | . . . . . . . . Total Hacks 80 | . 23 . 53 . 2 . 2 Successful 50 | . 12 . 34 . 2 . 2 Failed 29 | . 11 . 18 . . . . Catastrophic 2 | . 1 . 1 . . . . Database Lockouts 1 | . . . 1 . . . . Manual 51 | . 18 . 30 . 1 . 2 Terminals 64 | . 21 . 41 . . . 2 Fabricators . | . . . . . . . . Repair Stations 8 | . 2 . 6 . . . . Recycling Units . | . . . . . . . . Scanalyzers 6 | . . . 6 . . . . Garrison Access . | . . . . . . . . Terminal Hacks 22 | . 4 . 15 . 2 . 1 Record 1 | . . . . . 1 . . Robot Analysis 5 | . 2 . 2 . . . 1 Prototype ID Bank 2 | . . . 2 . . . . Alert Level 2 | . . . 2 . . . . Unreport Threat 3 | . . . 3 . . . . Locate Traps 3 | . 2 . 1 . . . . Security Status 1 | . . . 1 . . . . Recall Investigation 1 | . . . 1 . . . . Hauler Manifests 1 | . . . 1 . . . . Zone Layout 2 | . . . 2 . . . . EX-Prototype ID Bank 1 | . . . . . 1 . . Fabricator Hacks . | . . . . . . . . Repair Station Hacks 7 | . 2 . 5 . . . . Scan Component 4 | . 1 . 3 . . . . Repair 3 | . 1 . 2 . . . . Recycling Unit Hacks . | . . . . . . . . Scanalyzer 6 | . . . 6 . . . . Insert Component 3 | . . . 3 . . . . Analyze 3 | . . . 3 . . . . Garrison Access Hacks . | . . . . . . . . Unauthorized Hacks 15 | . 6 . 8 . . . 1 Terminals 15 | . 6 . 8 . . . 1 Track 6 | . 3 . 3 . . . . Botnet 9 | . 3 . 5 . . . 1 Fabricators . | . . . . . . . . Repair Stations . | . . . . . . . . Recycling Units . | . . . . . . . . Scanalyzers . | . . . . . . . . Garrison Access . | . . . . . . . . Data Cores Recovered 1 | . 1 . . . . . . Used . | . . . . . . . . Hacking Detections 19 | . 9 . 9 . . . 1 Full Trace Events . | . . . . . . . . Feedback Events . | . . . . . . . . Feedback Blocked . | . . . . . . . . Robot Schematics Acquired . | . . . . . . . . Robots Built . | . . . . . . . . Matter . | . . . . . . . . Time . | . . . . . . . . Total Robot Build Rating . | . . . . . . . . Part Schematics Acquired 3 | . . . 3 . . . . Parts Built . | . . . . . . . . Matter . | . . . . . . . . Time . | . . . . . . . . Total Part Build Rating . | . . . . . . . . Parts Repaired 3 | . 1 . 2 . . . . Time 57 | . 13 . 44 . . . . Parts Recycled . | . . . . . . . . Recycled Matter . | . . . . . . . . Retrieved Matter . | . . . . . . . . Retrieved Components . | . . . . . . . . Parts Scanalyzed 3 | . . . 3 . . . . Part Schematics Acquired 3 | . . . 3 . . . . Parts Damaged . | . . . . . . . . Bothacking | -11 -10 -10 -9 -9 -9 -8 -8 ------------ Run | Scr Mat Min Mat Min Exi Min Mat Used RIF Installer . | . . . . . . . . Robots Hacked . | . . . . . . . . Non-combat . | . . . . . . . . Combat . | . . . . . . . . Robot Hacks Applied . | . . . . . . . . Relay Couplers Released . | . . . . . . . . Robots Rewired . | . . . . . . . . Allies Hacked . | . . . . . . . . Hacks Repelled . | . . . . . . . . Allies | -11 -10 -10 -9 -9 -9 -8 -8 -------- Run | Scr Mat Min Mat Min Exi Min Mat Total Allies 3 | . . . . 3 . . . Largest Group 3 | . . . . 3 1 1 . Highest-Rated Group 40 | . . . . 40 16 16 . Highest-Rated Ally 16 | . . . . 16 16 16 . Total Orders . | . . . . . . . . Ally Attacks 23 | . . . . 15 . 8 . Total Damage 265 | . . . . 157 . 108 . Kills 6 | . . . . 5 . 1 . Allies Corrupted . | . . . . . . . . Allies Melted . | . . . . . . . . Intel | -11 -10 -10 -9 -9 -9 -8 -8 ------- Run | Scr Mat Min Mat Min Exi Min Mat Robot Analysis Total 5 | . 2 . 2 . . . 1 Derelict Logs Recovered 2 | . . 1 . 1 . . . Drone Launches . | . . . . . . . . Drone Recoveries . | . . . . . . . . Exploration | -11 -10 -10 -9 -9 -9 -8 -8 ------------- Run | Scr Mat Min Mat Min Exi Min Mat Turns Passed 9391 | 71 1480 580 3310 1228 759 1325 638 Spaces Moved 3826 | 35 652 466 1043 640 383 504 103 Core . | . . . . . . . . Treads 3180 | 8 509 . 1033 640 383 504 103 Legs 27 | 27 . . . . . . . Wheels 619 | . 143 466 10 . . . . Hover . | . . . . . . . . Flight . | . . . . . . . . Fastest Speed 100 | 120 100 100 100 180 180 200 180 Average Speed 170 | 129 153 100 185 180 195 200 180 Slowest Speed 200 | 160 180 100 200 180 200 200 180 Overloaded Moves . | . . . . . . . . Propulsion Burnouts . | . . . . . . . . Robots Hopped . | . . . . . . . . Cave-ins Triggered . | . . . . . . . . Exploration Rate (%) 71 | 4 95 99 86 99 77 99 10 Regions Visited 7 Branch Regions 4 Pre-discovered Areas 1 | . . . . . 1 . . Known Exits Taken . | . . . . . . . . Unknown Exits Taken 7 | 1 1 1 1 1 1 1 . Scrap Searched 3 | . . 1 . 1 . 1 . Spaces Dug . | . . . . . . . . Terrain Destroyed 60 | . 28 . 19 . . . 13 Melee . | . . . . . . . . Projectile . | . . . . . . . . AOE 60 | . 28 . 19 . . . 13 Terrain Rammed . | . . . . . . . . Walls Destroyed . | . . . . . . . . Machines Disabled . | . . . . . . . . Actions | -11 -10 -10 -9 -9 -9 -8 -8 --------- Run | Scr Mat Min Mat Min Exi Min Mat Total 6295 | 47 1069 563 2233 698 395 760 530 Wait 2114 | . 341 86 1014 43 8 218 404 Move 3819 | 34 651 465 1042 639 382 503 103 Hop . | . . . . . . . . Pick Up 35 | . 13 1 14 2 2 1 2 Fast Attach 10 | 1 1 2 5 . . . 1 Attach 13 | . 1 . 6 . . 4 2 Detach 3 | . . . 2 . . . 1 Swap 33 | 3 9 . 14 . 2 1 4 Drop 24 | 2 7 1 12 1 1 . . Fire 194 | 7 33 8 97 8 . 28 13 Melee . | . . . . . . . . Ram . | . . . . . . . . Kick . | . . . . . . . . Crush 10 | . . . . 5 . 5 . Escape Stasis . | . . . . . . . . Rewire . | . . . . . . . . Trap 40 | . 13 . 27 . . . . Miscellaneous . | . . . . . . . . Route ------- -11/Scrapyard -10/Materials (discovered 4 exits: *Mat x3 / [*Min]) -10/Mines (discovered 2 exits: *Mat x2) -9/Materials (discovered 3 exits: *Mat x2 / [*Min]) -9/Mines (discovered 3 exits: *Mat x2 / *Exi) -9/Exiles -8/Mines (discovered 2 exits: *Mat x2) -8/Materials (discovered 1 exit: Fac) History --------- Turn | Location | Event 1 | -11/Scrapyard | Discovered new exit (range 3) 72 | -11/Scrapyard | Entered Materials 311 | -10/Materials | Build established: Mutant 420 | -10/Materials | Discovered new exit (range 16) 484 | -10/Materials | Discovered new exit (range 16) 698 | -10/Materials | Discovered new exit (range 16) 1285 | -10/Materials | Discovered new exit (range 15) 1469 | -10/Materials | Repaired Lgt. Treads 1552 | -10/Materials | Entered Mines 1706 | -10/Mines | Learned Materials terminal intel 1708 | -10/Mines | Discovered new exit (range 13) 1809 | -10/Mines | Joined a pair of Derelicts in attacking an 0b10 outpost 2114 | -10/Mines | Discovered new exit (range 7) 2132 | -10/Mines | Entered Materials 2132 | -9/Materials | Evolved 2 slots: Utility x2 2133 | -9/Materials | Loaded intel: 12 terminal locations 2449 | -9/Materials | Build established: Scavenger-Mutant 3199 | -9/Materials | Repaired Lgt. Treads 3379 | -9/Materials | Discovered new exit (range 13) 3396 | -9/Materials | Build established: Hauler-Mutant 3535 | -9/Materials | Repaired Broken Lgt. Treads 4057 | -9/Materials | Discovered new exit (range 16) 4658 | -9/Materials | Central database locked down 4711 | -9/Materials | Build established: Scavenger-Mutant 5099 | -9/Materials | Discovered new exit (range 13) 5442 | -9/Materials | Entered Mines 5503 | -9/Mines | Assisted by bots powering up and referring to "LRC-V3" 5533 | -9/Mines | Met a Derelict bent on vengeance 5644 | -9/Mines | Deemed a non-threat by the Exiles lab entrance 5646 | -9/Mines | Discovered new exit (range 5) 5773 | -9/Mines | Received a Rocket Launcher from a helpful Derelict 5887 | -9/Mines | Discovered new exit (range 7) 5990 | -9/Mines | Discovered new exit (range 9) 6150 | -9/Mines | Learned 4 Materials zone layouts 6670 | -9/Mines | Entered Exiles 6670 | -9/Exiles | Accompanied by 1 ally 6715 | -9/Exiles | Met 8R-AWN 6744 | -9/Exiles | Met EX-HEX 6841 | -9/Exiles | Met EX-DEC 6880 | -9/Exiles | Visited The Gauntlet 6989 | -9/Exiles | Learned location of Zion (-6) 7141 | -9/Exiles | Met EX-BIN 7147 | -9/Exiles | Build established: Hauler-Mutant 7165 | -9/Exiles | Aligned with FarCom system 7167 | -9/Exiles | Given EX-Vault access code 7215 | -9/Exiles | Opened EX-Vault 7227 | -9/Exiles | Found Gui. Plasma Cannon 7230 | -9/Exiles | Found XL Autogun Array 7269 | -9/Exiles | Warned to stay clear of 0b10 Research branches 7395 | -9/Exiles | Discovered new exit (range 14) 7429 | -9/Exiles | Stole two prototypes: Gui. Plasma Cannon, XL Autogun Array 7429 | -9/Exiles | Entered Mines 7429 | -8/Mines | Accompanied by 1 ally 7545 | -8/Mines | Core integrity fell below 50% 7657 | -8/Mines | Discovered new exit (range 6) 7927 | -8/Mines | Discovered new exit (range 15) 8754 | -8/Mines | Entered Materials 8754 | -8/Materials | Evolved 2 slots: Propulsion x1, Weapon x1 8755 | -8/Materials | Identified exit to Factory 9070 | -8/Materials | Build established: Hauler-Skirmisher 9386 | -8/Materials | Garrison activated, responded to threat 9392 | -8/Materials | Self-destructed Last Messages --------------- 09081_ U-05 Engineer builds a Wall. 09085_ W-25 Informer destroyed. 09087_ K-01 Serf collects debris. 09088_ Acquired 22 matter. 09089_ R-06 Scavenger collects Lgt. Nuclear Core. 09089_ K-01 Serf collects debris. 09114_ U-05 Engineer lays Concrete. 09181_ W-25 Informer destroyed. 09222_ R-06 Scavenger collects Imp. Sensor Array. 09225_ R-06 Scavenger collects Imp. Signal Interpreter. 09229_ R-06 Scavenger collects Imp. Hover Unit. 09352_ K-01 Serf collects debris. 09373_ Acquired 39 matter. 09382_ G-47 Trooper destroyed. 09385_ K-01 Serf collects debris. 09386_ G-47 Trooper calls for garrison reinforcements. 09386_ ALERT: Activating Garrison Access M001. 09387_ G-47 Trooper emerges from the garrison. 09389_ G-47 Trooper destroyed. 09389_ Switching to secondary target: G-47 Trooper. Map ----- +----------------------------------------------------+ | ?????????????????????????????????????????????????? | | ?????????????????????????????????????????????????? | | ?????????????????????????????????????????????????? | | ?????????????????????????????????????????????????? | | ?????????????????????????????????????????????????? | | ?????????????????????????????????????????????????? | | ?????????????????????????????????????????????????? | | ?????????????????????????????????????????????????? | | ?????????????????????????????????????????????????? | | ####?????????????????????????????????????????????? | | ########?##???????????????????????????????????? | | # #???????????????????????????????????? | | # """ """ #???????????????????????????????????? | | # """ """ #???????????????????????????????????? | | # """ """ #???????????????????????????????????? | | + """ """ #???????????????????????????????????? | | # """ """ #???????????????????????????????????? | | # #???????????????????????????????????? | | # #???????????????????????????????????? | | ############??????????????????????????????????? | | = # #??????????????????????????????????? | | * #????????????????????? #??????????? | | * # #??????????????????]// #??????????? | | [% # #??????????###### /// #??????????? | | #/#+################ g !#??????????? | | ! k=%!%[=@ ^ g #??????????? | | = *#################### " " #??????????? | | !! ! #???????????????????? "G" #??????????? | | !! """ #?????????????????????""" ???????????? | | !! """ #??????????????????????? ????????????? | | """ #???????????????????????? ????????????? | | #?????????????????????????????????????? | | ?????????????????????????????????????? | | ????????????????????????????????????? | | ???????????????????????????????????? | | ############+#???????????????????????????????????? | | ?????????????????????????????????????????????????? | | ?????????????????l???????????????????????????????? | | ?????????????????????????????????????????????????? | | ?????????????????????????????????????????????????? | | ?????????????????????????????????????????????????? | | ?????????????????????????????????????????????????? | | ?????????????????????????????????????????????????? | | ?????????????????????????????????????????????????? | | ?????????????????????????????????????????????????? | | ?????????????????????????????????????????????????? | | ##### + #????????????# ## | | + # #????????????# ###### | | ##+##### # #????????????# #????# | | # #?# # ########?????# #????######## | +----------------------------------------------------+ Best States ------------- Heat Dissipation 42 Energy Generation 10 Energy Capacity 250 Matter Stores 300 Matter Capacity 300 Sight Range 16 Terrain Scan Density 10 Armor Coverage 225 Evasion (%) 40 Recoil Reduction 3 Item Schematics ----------------- Lgt. Treads | -9/Materials | Scanalyzed Imp. Signal Interpreter | -9/Materials | Scanalyzed Lrg. Storage Unit | -9/Materials | Scanalyzed Robot Schematics ------------------ None Fabricated ------------ Nothing Alien Tech Used ----------------- None Achievements -------------- None Challenges ------------ None Game ------ Seed GuidedAutogunShockpuncher Manual? 0 Play Time 00:41:43 Cumulative 265.0 hours Start 2021.03.23 @ 21:17:14 End 2021.08.27 @ 23:28:09 Sessions 3 Manual Loads 0 Difficulty Rogue Special Mode None Game No. 187 Rogue 187 Adventurer 0 Explorer 0 Win Type - Total 6 Types 6/0/0/0/0/0/0/0/0 Lore% 59 Gallery% 67 Achievement% 51 Wizard Run 0 Options --------- ASCII 0 Keyboard 1 Movement Arrows Keybinds 0 Fullscreen 1 Font 24/Smallcaps Map View 76x50 Tactical HUD 1 Map Filters NONE Filters NONE Steam 1 RUN: 0f39c95c-0657-4d01-8def-238fd41fefed